[Event "RUS-ch Men Rapid 2019"]
[Site "Sochi"]
[Date "2019.10.15"]
[Round "5.11"]
[White "Rozum, Ivan"]
[Black "Gaydym, Arseniy"]
[Result "1-0"]
[ECO "A11"]
[WhiteElo "2551"]
[BlackElo "2139"]
[Annotator "RC"]
[PlyCount "127"]
[EventDate "2019.10.15"]
[EventType "swiss"]
[EventCountry "RUS"]
[SourceTitle "playchess.com"]
[Source "ChessBase"]
[SourceQuality "1"]
[TimeControl "900+10"]

1. c4 {[%emt 0:00:18]} c6 {[%emt 0:00:00]} 2. Nf3 {[%emt 0:00:05]} d5 {[%emt 0:00:00]} 3. g3 {[%emt 0:00:02]} Nf6 {[%emt 0:00:02]} 4. Bg2 {[%emt 0:00:01]} g6 {[%emt 0:00:03]} 5. b3 {[%emt 0:00:02]} Bg7 {[%emt 0:00:01]} 6. Bb2 {[%emt 0:00:01]} O-O {[%emt 0:00:04]} 7. O-O {[%emt 0:00:03]} Bf5 {[%emt 0:00:16]} 8. d3 {[%emt 0:00:07]} Qc8 {[%emt 0:00:12]} 9. Nbd2 {[%emt 0:00:25]} Bh3 {[%emt 0:00:12]} 10. Qc2 {[%emt 0:00:01]} Bxg2 {[%emt 0:00:04]} 11. Kxg2 {[%emt 0:00:02]} Nbd7 {[%emt 0:01:30]} 12. e4 {[%emt 0:00:04]} dxe4 {[%emt 0:00:49]} 13. dxe4 {[%emt 0:00:01]} Qc7 {[%emt 0:01:19]} 14. Rfe1 {[%emt 0:01:27]} e5 {[%emt 0:00:37]} 15. c5 {[%emt 0:00:04]} Nh5 {[%emt 0:01:30]} 16. Nc4 {[%emt 0:01:49]} Nxc5 {[%emt 0:01:33]} 17. Bxe5 {[%emt 0:00:07]} Bxe5 {[%emt 0:00:28]} 18. Ncxe5 {[%emt 0:00:01]} Ne6 {[%emt 0:00:13]} 19. Qc3 {[%emt 0:00:04]} Rad8 {[%emt 0:02:37]} 20. Ng4 {[%emt 0:00:07]} f6 {[%emt 0:00:01]} 21. h4 {[%emt 0:00:18]} Qd7 {[%emt 0:00:56]} 22. Nfh2 {[%emt 0:00:45]} Qd4 {[%emt 0:02:19]} 23. Qa5 {[%emt 0:01:18]} Kg7 {[%emt 0:01:36]} 24. Rac1 {[%emt 0:00:41]} a6 {[%emt 0:01:44]} 25. Nf3 {[%emt 0:00:58]} Qd3 {[%emt 0:00:01]} 26. Re3 {[%emt 0:00:14]} Qd7 {[%emt 0:00:15]} 27. Kg1 {[%emt 0:00:54]} Nd4 {[%emt 0:00:45]} 28. Ngh2 {[%emt 0:01:10]} Ne6 {[%emt 0:00:02]} 29. Qc3 {[%emt 0:00:13]} Nd4 {[%emt 0:00:17]} 30. Rce1 {[%emt 0:00:42]} Nxf3+ {[%emt 0:00:08]} 31. Nxf3 {[%emt 0:00:02]} Qe6 {[%emt 0:00:22]} 32. e5 {[%emt 0:00:06]} Kg8 {[%emt 0:00:08]} 33. Nd2 {[%emt 0:02:11]} Qd5 {[%emt 0:00:09]} 34. Nc4 {[%emt 0:00:23]} fxe5 {[%emt 0:00:13]} 35. Nxe5 {[%emt 0:01:03]} Qd2 {[%emt 0:00:05]} 36. Qc4+ {[%emt 0:00:07]} Qd5 {[%emt 0:00:03]} 37. Qg4 {[%emt 0:00:33]} Qd2 {[%emt 0:00:21]} 38. Qe6+ {[%emt 0:00:19]} Kg7 {[%emt 0:00:02]} 39. Qe7+ {[%emt 0:00:03]} Kg8 {[%emt 0:00:02]} 40. R3e2 {[%emt 0:00:04]} Qd5 {[%emt 0:00:18]} 41. Qxb7 {[%emt 0:00:18]} Rd6 {[%emt 0:00:19]} 42. Qxa6 {[%emt 0:00:26]} Re6 {[%emt 0:00:10]} 43. Qc4 {[%emt 0:00:12]} Nf6 {[%emt 0:00:08]} 44. Qxd5 {[%emt 0:00:39]} Nxd5 {[%emt 0:00:02]} 45. Nd3 {[%emt 0:00:17]} Ref6 {[%emt 0:00:22]} 46. f4 {[%emt 0:00:02]} Ra8 {[%emt 0:00:08]} 47. Re8+ {[%emt 0:00:03]} Rxe8 {[%emt 0:00:01]} 48. Rxe8+ {[%emt 0:00:01]} Kg7 {[%emt 0:00:10]} 49. Rc8 {[%emt 0:00:14]} Nc3 {[%emt 0:00:06]} 50. Rc7+ {[%emt 0:00:37]} Kg8 {[%emt 0:00:04]} 51. Ne5 {[%emt 0:00:32]} Nxa2 {[%emt 0:00:04]} 52. Rxc6 Rf8 {[%emt 0:00:03]} 53. Ra6 {[%emt 0:00:19]} Nb4 {[%emt 0:00:07]} 54. Rb6 {[%emt 0:00:01]} Nc2 {[%emt 0:00:02]} 55. Kf2 {[%emt 0:00:09]} Rd8 {[%emt 0:00:13]} 56. Nf3 {[%emt 0:00:09]} Ra8 {[%emt 0:00:07]} 57. Ng5 {[%emt 0:00:11]} Ra2 {[%emt 0:00:09]} 58. Rb8+ {[%emt 0:00:04]} Kg7 {[%emt 0:00:04]} 59. Rb7+ {[%emt 0:00:02]} Kg8 {[%emt 0:00:03]} 60. Nxh7 {[%emt 0:00:05]} Nd4+ {[%emt 0:00:28]} 61. Ke3 {[%emt 0:00:01]} Nf5+ {[%emt 0:00:01]} 62. Kf3 {[%emt 0:00:02]} Rc2 {[%emt 0:00:03]} 63. Nf6+ {[%emt 0:00:01]} Kf8 {[%emt 0:00:01]} 64. Ne4 {[%emt 0:00:06]} 1-0

[Event "RUS-ch Men Rapid 2019"]
[Site "Sochi"]
[Date "2019.10.15"]
[Round "5.12"]
[White "Derjabin, Ilja"]
[Black "Bocharov, Dmitry"]
[Result "0-1"]
[ECO "E20"]
[WhiteElo "2333"]
[BlackElo "2673"]
[Annotator "RC"]
[PlyCount "82"]
[EventDate "2019.10.15"]
[EventType "swiss"]
[EventCountry "RUS"]
[SourceTitle "playchess.com"]
[Source "ChessBase"]
[SourceQuality "1"]
[TimeControl "900+10"]

1. d4 {[%emt 0:00:00]} Nf6 {[%emt 0:00:00]} 2. c4 {[%emt 0:00:02]} e6 {[%emt 0:00:00]} 3. Nc3 {[%emt 0:00:03]} Bb4 {[%emt 0:00:03]} 4. f3 {[%emt 0:00:04]} O-O {[%emt 0:00:21]} 5. a3 {[%emt 0:00:01]} Bxc3+ {[%emt 0:00:04]} 6. bxc3 {[%emt 0:00:01]} Nh5 {[%emt 0:00:05]} 7. Nh3 {[%emt 0:00:04]} f5 {[%emt 0:00:05]} 8. Bg5 {[%emt 0:00:30]} Qe8 {[%emt 0:00:06]} 9. e3 {[%emt 0:00:07]} Nc6 {[%emt 0:00:53]} 10. Bd3 {[%emt 0:00:15]} d6 {[%emt 0:00:31]} 11. O-O {[%emt 0:00:28]} e5 {[%emt 0:00:11]} 12. Qc2 {[%emt 0:02:44]} h6 {[%emt 0:00:11]} 13. Bh4 {[%emt 0:00:03]} g5 {[%emt 0:00:03]} 14. Be1 {[%emt 0:01:06]} Ng7 {[%emt 0:02:26]} 15. Nf2 {[%emt 0:01:41]} b6 {[%emt 0:00:54]} 16. Bd2 {[%emt 0:01:16]} Ba6 {[%emt 0:00:25]} 17. g4 {[%emt 0:01:30]} Bc8 {[%emt 0:03:15]} 18. Rae1 {[%emt 0:01:42]} Bd7 {[%emt 0:01:15]} 19. Kh1 {[%emt 0:00:56]} Kh8 {[%emt 0:01:03]} 20. Rg1 {[%emt 0:01:46]} Ne7 {[%emt 0:01:40]} 21. Rg3 {[%emt 0:00:55]} Ng6 {[%emt 0:00:19]} 22. gxf5 {[%emt 0:00:48]} Bxf5 {[%emt 0:01:32]} 23. Ng4 {[%emt 0:00:12]} Bxd3 {[%emt 0:00:13]} 24. Qxd3 {[%emt 0:00:02]} Nh4 {[%emt 0:00:39]} 25. e4 {[%emt 0:00:32]} Qe6 {[%emt 0:00:49]} 26. Reg1 {[%emt 0:00:34]} Nh5 {[%emt 0:00:12]} 27. Rh3 {[%emt 0:00:02]} Nf4 {[%emt 0:00:09]} 28. Bxf4 {[%emt 0:00:03]} Rxf4 {[%emt 0:00:04]} 29. dxe5 {[%emt 0:00:27]} dxe5 {[%emt 0:00:01]} 30. Qd5 {[%emt 0:00:34]} Re8 {[%emt 0:00:04]} 31. Rd1 {[%emt 0:01:01]} Kg7 {[%emt 0:01:05]} 32. Qxe6 {[%emt 0:00:35]} Rxe6 {[%emt 0:00:03]} 33. Rd7+ {[%emt 0:00:08]} Rf7 {[%emt 0:00:42]} 34. Rd5 {[%emt 0:00:04]} Nxf3 {[%emt 0:00:15]} 35. Kg2 {[%emt 0:00:09]} Nh4+ 36. Kg1 Rf4 {[%emt 0:00:44]} 37. Nxe5 {[%emt 0:00:18]} Rxe4 {[%emt 0:00:21]} 38. Rd7+ {[%emt 0:00:21]} Kf6 {[%emt 0:00:13]} 39. Nd3 {[%emt 0:00:02]} Rxc4 {[%emt 0:00:11]} 40. Nb4 {[%emt 0:00:10]} Rce4 {[%emt 0:00:10]} 41. Nd5+ {[%emt 0:00:08]} Kg6 {[%emt 0:00:02]} 0-1

[Event "RUS-ch Men Rapid 2019"]
[Site "Sochi"]
[Date "2019.10.15"]
[Round "5.13"]
[White "Savitskiy, Sergey"]
[Black "Antipov, Mikhail Al."]
[Result "0-1"]
[ECO "B30"]
[WhiteElo "2407"]
[BlackElo "2658"]
[Annotator "RC"]
[PlyCount "140"]
[EventDate "2019.10.15"]
[EventType "swiss"]
[EventCountry "RUS"]
[SourceTitle "playchess.com"]
[Source "ChessBase"]
[SourceQuality "1"]
[TimeControl "900+10"]

1. e4 {[%emt 0:00:00]} c5 {[%emt 0:00:00]} 2. Nf3 {[%emt 0:00:00]} Nc6 {[%emt 0:00:00]} 3. Bb5 {[%emt 0:00:00]} d6 {[%emt 0:00:06]} 4. O-O {[%emt 0:00:21]} Bd7 {[%emt 0:00:02]} 5. c3 {[%emt 0:01:35]} a6 {[%emt 0:00:46]} 6. Ba4 {[%emt 0:00:01]} Nf6 {[%emt 0:00:02]} 7. Re1 {[%emt 0:00:01]} b5 {[%emt 0:00:01]} 8. Bc2 {[%emt 0:00:01]} e5 {[%emt 0:00:03]} 9. d3 {[%emt 0:00:25]} h6 {[%emt 0:00:48]} 10. Nbd2 {[%emt 0:00:03]} g6 {[%emt 0:00:56]} 11. Nf1 {[%emt 0:00:02]} Bg7 {[%emt 0:00:01]} 12. h3 {[%emt 0:00:20]} O-O {[%emt 0:00:09]} 13. Be3 {[%emt 0:00:04]} Re8 {[%emt 0:00:16]} 14. Ng3 {[%emt 0:00:58]} Rc8 {[%emt 0:00:29]} 15. Rc1 {[%emt 0:00:08]} Be6 {[%emt 0:03:20]} 16. a3 {[%emt 0:01:10]} Qe7 {[%emt 0:00:24]} 17. Qd2 {[%emt 0:00:40]} Qf8 {[%emt 0:00:52]} 18. d4 {[%emt 0:00:16]} Na5 19. d5 {[%emt 0:00:48]} Nc4 {[%emt 0:00:45]} 20. Qe2 Bd7 21. Bd3 {[%emt 0:00:43]} Nxe3 {[%emt 0:00:08]} 22. Qxe3 {[%emt 0:00:14]} h5 {[%emt 0:00:52]} 23. Ra1 {[%emt 0:00:14]} Rb8 {[%emt 0:01:00]} 24. Qe2 {[%emt 0:01:45]} Rec8 25. Bc2 {[%emt 0:00:07]} c4 {[%emt 0:00:39]} 26. Nf1 {[%emt 0:00:22]} Rc7 {[%emt 0:00:36]} 27. Ne3 {[%emt 0:00:10]} Qc8 {[%emt 0:00:01]} 28. Nd2 {[%emt 0:00:02]} Bh6 {[%emt 0:00:23]} 29. a4 {[%emt 0:00:38]} Qd8 {[%emt 0:01:34]} 30. axb5 {[%emt 0:00:16]} axb5 {[%emt 0:00:00]} 31. Bb1 {[%emt 0:00:24]} h4 {[%emt 0:00:40]} 32. Nf3 {[%emt 0:02:41]} Nh5 {[%emt 0:00:11]} 33. Qf1 {[%emt 0:00:13]} Nf4 {[%emt 0:01:05]} 34. Bc2 {[%emt 0:00:23]} Bf8 {[%emt 0:00:11]} 35. Ra2 {[%emt 0:00:52]} Qf6 36. Nd2 Be7 {[%emt 0:00:23]} 37. Rea1 {[%emt 0:00:14]} Bd8 38. Bd1 {[%emt 0:02:06]} Qg5 {[%emt 0:00:18]} 39. Kh1 {[%emt 0:01:25]} Rcb7 {[%emt 0:00:05]} 40. Ra8 {[%emt 0:00:10]} Bb6 {[%emt 0:00:10]} 41. Bg4 {[%emt 0:00:24]} f5 {[%emt 0:01:41]} 42. exf5 {[%emt 0:01:20]} gxf5 {[%emt 0:00:01]} 43. Ne4 {[%emt 0:00:03]} Qg6 {[%emt 0:00:03]} 44. Nxf5 {[%emt 0:00:10]} Bxf5 {[%emt 0:00:10]} 45. Bxf5 {[%emt 0:00:06]} Qxf5 {[%emt 0:00:01]} 46. Nxd6 {[%emt 0:00:02]} Qf8 {[%emt 0:00:07]} 47. Rxb8 {[%emt 0:00:18]} Rxb8 {[%emt 0:00:01]} 48. Ne4 {[%emt 0:00:06]} Qf5 {[%emt 0:01:37]} 49. Re1 {[%emt 0:00:35]} Rf8 {[%emt 0:00:09]} 50. d6 {[%emt 0:00:10]} Nd3 {[%emt 0:00:10]} 51. Re2 {[%emt 0:00:10]} Bxf2 {[%emt 0:01:14]} 52. d7 Bb6 {[%emt 0:00:01]} 53. Qxf5 {[%emt 0:00:20]} Rxf5 {[%emt 0:00:22]} 54. Kh2 {[%emt 0:00:09]} Rf7 {[%emt 0:00:03]} 55. Nd6 {[%emt 0:00:10]} Rxd7 {[%emt 0:00:10]} 56. Nxb5 Rf7 57. Nd6 {[%emt 0:00:20]} Rf1 {[%emt 0:00:25]} 58. g3 {[%emt 0:00:02]} hxg3+ {[%emt 0:00:42]} 59. Kxg3 {[%emt 0:00:03]} Rg1+ {[%emt 0:00:04]} 60. Kh2 Rg6 61. Nxc4 {[%emt 0:00:37]} Bg1+ {[%emt 0:00:11]} 62. Kh1 {[%emt 0:00:01]} Nf2+ {[%emt 0:00:01]} 63. Rxf2 {[%emt 0:00:01]} Bxf2 {[%emt 0:00:01]} 64. Nxe5 {[%emt 0:00:00]} Rg1+ {[%emt 0:00:04]} 65. Kh2 {[%emt 0:00:00]} Rb1 {[%emt 0:00:22]} 66. Nc4 Kf7 {[%emt 0:00:08]} 67. Kg2 {[%emt 0:00:06]} Bh4 {[%emt 0:00:01]} 68. Kf3 {[%emt 0:00:00]} Ke6 {[%emt 0:00:11]} 69. Ke4 {[%emt 0:00:02]} Bf6 {[%emt 0:00:07]} 70. Kd3 {[%emt 0:00:07]} Rh1 {[%emt 0:00:02] Kd4 Ke5+} 0-1

[Event "RUS-ch Men Rapid 2019"]
[Site "Sochi"]
[Date "2019.10.15"]
[Round "5.18"]
[White "Shcherbin, Matvei"]
[Black "Papin, Vasily"]
[Result "1/2-1/2"]
[ECO "B22"]
[WhiteElo "2366"]
[BlackElo "2541"]
[Annotator "ChessBase"]
[PlyCount "39"]
[EventDate "2019.10.15"]
[EventType "swiss"]
[EventCountry "RUS"]
[SourceTitle "playchess.com"]
[Source "ChessBase"]
[SourceQuality "1"]
[TimeControl "900+10"]

1. e4 {[%emt 0:00:00]} c5 {[%emt 0:00:00]} 2. c3 {[%emt 0:00:00]} Nf6 {[%emt 0:00:00]} 3. e5 {[%emt 0:00:00]} Nd5 {[%emt 0:00:00]} 4. d4 {[%emt 0:00:00]} cxd4 {[%emt 0:00:00]} 5. Nf3 {[%emt 0:00:00]} Nc6 {[%emt 0:00:40]} 6. cxd4 {[%emt 0:00:00]} d6 {[%emt 0:00:01]} 7. Bc4 {[%emt 0:00:03]} Nb6 {[%emt 0:00:01]} 8. Bb5 {[%emt 0:00:02]} Bd7 {[%emt 0:00:02]} 9. Nc3 {[%emt 0:00:01]} dxe5 {[%emt 0:01:49]} 10. Nxe5 {[%emt 0:00:02]} Nxe5 {[%emt 0:01:04]} 11. dxe5 {[%emt 0:00:02]} Bxb5 {[%emt 0:00:56]} 12. Nxb5 {[%emt 0:00:02]} a6 {[%emt 0:00:51]} 13. Be3 {[%emt 0:02:50]} Qxd1+ {[%emt 0:01:13]} 14. Rxd1 {[%emt 0:00:07]} axb5 {[%emt 0:00:12]} 15. Bxb6 {[%emt 0:00:02]} e6 {[%emt 0:00:16]} 16. Ke2 {[%emt 0:01:07]} Be7 {[%emt 0:00:26]} 17. a3 {[%emt 0:00:32]} f6 {[%emt 0:03:18]} 18. exf6 {[%emt 0:01:10]} Bxf6 {[%emt 0:00:10]} 19. Rd2 {[%emt 0:02:54]} Rc8 {[%emt 0:00:57]} 20. Rhd1 {[%emt 0:01:01]} 1/2-1/2

[Event "RUS-ch Men Rapid 2019"]
[Site "Sochi"]
[Date "2019.10.15"]
[Round "5.19"]
[White "Belyakov, Bogdan"]
[Black "Nechaev, Oleg"]
[Result "1/2-1/2"]
[ECO "B22"]
[WhiteElo "2506"]
[BlackElo "2371"]
[Annotator "ChessBase"]
[PlyCount "90"]
[EventDate "2019.10.15"]
[EventType "swiss"]
[EventCountry "RUS"]
[SourceTitle "playchess.com"]
[Source "ChessBase"]
[SourceQuality "1"]
[TimeControl "900+10"]

1. e4 {[%emt 0:00:00]} c5 {[%emt 0:00:00]} 2. c3 {[%emt 0:00:00]} Nc6 {[%emt 0:00:00]} 3. Nf3 {[%emt 0:00:03]} d5 {[%emt 0:00:00]} 4. exd5 {[%emt 0:00:04]} Qxd5 {[%emt 0:00:00]} 5. d4 {[%emt 0:00:02]} cxd4 {[%emt 0:00:02]} 6. cxd4 {[%emt 0:00:03]} e5 {[%emt 0:00:02]} 7. Nc3 {[%emt 0:00:16]} Bb4 {[%emt 0:00:02]} 8. Bd2 {[%emt 0:00:02]} Bxc3 {[%emt 0:00:02]} 9. Bxc3 {[%emt 0:00:02]} e4 {[%emt 0:00:01]} 10. Ne5 {[%emt 0:00:03]} Nxe5 {[%emt 0:00:02]} 11. dxe5 {[%emt 0:00:02]} Ne7 {[%emt 0:00:02]} 12. Qe2 {[%emt 0:00:19]} O-O {[%emt 0:00:04]} 13. Rd1 {[%emt 0:00:03]} Qxa2 {[%emt 0:00:02]} 14. Bb4 {[%emt 0:00:39]} Qe6 {[%emt 0:01:45]} 15. Qxe4 {[%emt 0:00:03]} Re8 {[%emt 0:00:19]} 16. Bc3 {[%emt 0:02:27]} Qc6 {[%emt 0:01:57]} 17. Bd3 {[%emt 0:01:44]} Bf5 {[%emt 0:00:56]} 18. Qxc6 {[%emt 0:00:31]} bxc6 {[%emt 0:00:02]} 19. Bxf5 {[%emt 0:01:44]} Nxf5 {[%emt 0:00:02]} 20. O-O {[%emt 0:00:03]} a5 {[%emt 0:00:25]} 21. Rd7 {[%emt 0:00:49]} a4 {[%emt 0:00:16]} 22. Rfd1 {[%emt 0:01:00]} h5 {[%emt 0:00:46]} 23. Rc7 {[%emt 0:00:30]} Rec8 {[%emt 0:00:13]} 24. Rdd7 {[%emt 0:00:13]} Rxc7 {[%emt 0:00:42]} 25. Rxc7 {[%emt 0:00:02]} Ra6 {[%emt 0:00:01]} 26. g3 {[%emt 0:00:50]} g5 {[%emt 0:01:06]} 27. h3 {[%emt 0:00:12]} g4 {[%emt 0:00:40]} 28. hxg4 {[%emt 0:00:02]} hxg4 {[%emt 0:00:01]} 29. Kf1 {[%emt 0:00:30]} Kf8 {[%emt 0:00:03]} 30. Bb4+ {[%emt 0:00:44]} Ke8 {[%emt 0:00:02]} 31. Bc5 {[%emt 0:00:01]} Ra5 {[%emt 0:01:19]} 32. Bd6 {[%emt 0:00:22]} Nxd6 {[%emt 0:00:20]} 33. exd6 {[%emt 0:00:02]} Rb5 {[%emt 0:00:18]} 34. Re7+ {[%emt 0:01:52]} Kd8 {[%emt 0:00:04]} 35. Ra7 {[%emt 0:00:31]} Rxb2 {[%emt 0:00:09]} 36. Rxa4 {[%emt 0:00:02]} f5 {[%emt 0:00:02]} 37. Ra7 {[%emt 0:00:38]} Rd2 {[%emt 0:00:15]} 38. Rf7 {[%emt 0:00:02]} Rd5 {[%emt 0:00:03]} 39. Ke2 {[%emt 0:00:37]} Ke8 {[%emt 0:00:08]} 40. Re7+ {[%emt 0:00:21]} Kf8 {[%emt 0:00:21]} 41. Rd7 {[%emt 0:01:20]} Ke8 {[%emt 0:00:05]} 42. Re7+ {[%emt 0:00:03]} Kd8 {[%emt 0:00:13]} 43. Rf7 {[%emt 0:00:12]} Ke8 {[%emt 0:00:21]} 44. Re7+ {[%emt 0:00:19]} Kd8 {[%emt 0:00:14]} 45. Rf7 {[%emt 0:00:03]} Ke8 {[%emt 0:00:20]} 1/2-1/2

[Event "RUS-ch Men Rapid 2019"]
[Site "Sochi"]
[Date "2019.10.15"]
[Round "5.20"]
[White "Mikhailovsky, Vladimir"]
[Black "Faizrakhmanov, Ramil"]
[Result "0-1"]
[ECO "D01"]
[WhiteElo "2209"]
[BlackElo "2434"]
[Annotator "NA"]
[PlyCount "92"]
[EventDate "2019.10.15"]
[EventType "swiss"]
[EventCountry "RUS"]
[SourceTitle "playchess.com"]
[Source "ChessBase"]
[SourceQuality "1"]
[TimeControl "900+10"]

1. d4 {[%emt 0:00:00]} Nf6 {[%emt 0:00:00]} 2. Nc3 {[%emt 0:00:00]} d5 {[%emt 0:00:00]} 3. Bg5 {[%emt 0:00:00]} Nbd7 {[%emt 0:00:01]} 4. f3 {[%emt 0:00:02]} h6 {[%emt 0:00:14]} 5. Bh4 {[%emt 0:00:04]} c6 {[%emt 0:01:37]} 6. e4 {[%emt 0:00:07]} dxe4 {[%emt 0:00:07]} 7. fxe4 {[%emt 0:00:30]} Qa5 {[%emt 0:00:05]} 8. Qd2 {[%emt 0:05:32]} e5 {[%emt 0:00:43]} 9. dxe5 {[%emt 0:01:04]} Nxe5 {[%emt 0:00:21]} 10. Nf3 {[%emt 0:01:01]} Bb4 {[%emt 0:00:39]} 11. Bd3 {[%emt 0:03:48]} Be6 {[%emt 0:01:32]} 12. Nxe5 {[%emt 0:01:24]} Qxe5 {[%emt 0:00:08]} 13. O-O {[%emt 0:00:34]} Bd6 {[%emt 0:02:18]} 14. Bg3 {[%emt 0:01:11]} Qc5+ {[%emt 0:00:04]} 15. Qf2 {[%emt 0:00:51]} Qxf2+ {[%emt 0:00:26]} 16. Kxf2 {[%emt 0:00:29]} Ng4+ {[%emt 0:00:26]} 17. Kf3 {[%emt 0:00:02]} Bxg3 {[%emt 0:00:38]} 18. Kxg3 {[%emt 0:00:02]} Ne5 {[%emt 0:00:02]} 19. Rad1 {[%emt 0:00:38]} Ke7 {[%emt 0:00:03]} 20. a3 {[%emt 0:00:27]} Rhd8 {[%emt 0:00:30]} 21. Kf4 {[%emt 0:00:23]} f6 {[%emt 0:00:05]} 22. h3 {[%emt 0:00:10]} g5+ {[%emt 0:01:25]} 23. Ke3 {[%emt 0:00:03]} h5 {[%emt 0:00:01]} 24. Ne2 {[%emt 0:00:22]} Rd7 {[%emt 0:01:24]} 25. Nd4 {[%emt 0:00:10]} Rad8 {[%emt 0:00:05]} 26. Be2 {[%emt 0:00:02]} h4 {[%emt 0:00:42]} 27. Nxe6 {[%emt 0:00:13]} Rxd1 {[%emt 0:00:26]} 28. Nxd8 {[%emt 0:00:17]} Rxd8 {[%emt 0:00:08]} 29. b3 {[%emt 0:00:06]} Ng6 {[%emt 0:00:23]} 30. Rf2 {[%emt 0:00:10]} Nf4 {[%emt 0:00:16]} 31. Bg4 {[%emt 0:00:07]} c5 {[%emt 0:00:11]} 32. Kf3 {[%emt 0:00:12]} Rd4 {[%emt 0:00:52]} 33. Bf5 {[%emt 0:00:12]} c4 {[%emt 0:00:46]} 34. b4 {[%emt 0:00:12]} c3 {[%emt 0:00:04]} 35. g3 {[%emt 0:00:06]} hxg3 {[%emt 0:00:24]} 36. Kxg3 {[%emt 0:00:02]} Rd2 {[%emt 0:00:49]} 37. Kf3 {[%emt 0:00:17]} Kd6 {[%emt 0:00:11]} 38. Ke3 {[%emt 0:00:03]} Ng2+ {[%emt 0:00:04]} 39. Kf3 {[%emt 0:00:15]} Ne1+ {[%emt 0:00:02]} 40. Kg3 {[%emt 0:00:06]} Ke5 {[%emt 0:00:17]} 41. Rxd2 {[%emt 0:00:22]} cxd2 {[%emt 0:00:02]} 42. Bg4 {[%emt 0:00:01]} Nxc2 {[%emt 0:00:03]} 43. Kf2 {[%emt 0:00:01]} Nxa3 {[%emt 0:00:08]} 44. Ke2 {[%emt 0:00:02]} Nc2 {[%emt 0:00:05]} 45. b5 {[%emt 0:00:08]} d1=Q+ {[%emt 0:00:08]} 46. Kxd1 {[%emt 0:00:02]} Ne3+ {[%emt 0:00:01]} 0-1

[Event "RUS-ch Men Rapid 2019"]
[Site "Sochi"]
[Date "2019.10.15"]
[Round "5.21"]
[White "Goltsev, Dmitry"]
[Black "Bryakin, Mikhail"]
[Result "1/2-1/2"]
[ECO "B12"]
[WhiteElo "2309"]
[BlackElo "2440"]
[Annotator "NA"]
[PlyCount "68"]
[EventDate "2019.10.15"]
[EventType "swiss"]
[EventCountry "RUS"]
[SourceTitle "playchess.com"]
[Source "ChessBase"]
[SourceQuality "1"]
[TimeControl "900+10"]

1. e4 {[%emt 0:00:00]} c6 {[%emt 0:00:00]} 2. d4 {[%emt 0:00:00]} d5 {[%emt 0:00:00]} 3. e5 {[%emt 0:00:00]} Bf5 {[%emt 0:00:00]} 4. Bd3 {[%emt 0:00:03]} Bxd3 {[%emt 0:00:00]} 5. Qxd3 {[%emt 0:00:01]} e6 {[%emt 0:00:00]} 6. Ne2 {[%emt 0:00:03]} Ne7 {[%emt 0:00:07]} 7. O-O {[%emt 0:00:03]} Nf5 {[%emt 0:00:03]} 8. Ng3 {[%emt 0:00:32]} g6 {[%emt 0:00:07]} 9. Nd2 {[%emt 0:00:12]} Nd7 {[%emt 0:00:04]} 10. Nf3 {[%emt 0:00:09]} Be7 {[%emt 0:00:04]} 11. c3 {[%emt 0:00:11]} h5 {[%emt 0:00:05]} 12. Nxf5 {[%emt 0:00:24]} gxf5 {[%emt 0:00:13]} 13. Bf4 {[%emt 0:00:09]} h4 {[%emt 0:00:06]} 14. Qe3 {[%emt 0:00:07]} Nf8 {[%emt 0:00:21]} 15. g3 {[%emt 0:00:46]} Ng6 {[%emt 0:00:08]} 16. Bg5 {[%emt 0:00:13]} hxg3 {[%emt 0:00:12]} 17. hxg3 {[%emt 0:00:09]} Rh5 {[%emt 0:00:29]} 18. Bxe7 {[%emt 0:00:27]} Qxe7 {[%emt 0:00:01]} 19. Kg2 {[%emt 0:00:04]} f4 {[%emt 0:00:14]} 20. Qd2 {[%emt 0:01:17]} O-O-O {[%emt 0:00:16]} 21. Rh1 {[%emt 0:00:02]} Rdh8 {[%emt 0:00:06]} 22. Rxh5 {[%emt 0:00:09]} Rxh5 {[%emt 0:00:02]} 23. Rh1 {[%emt 0:00:03]} Rxh1 {[%emt 0:00:22]} 24. Kxh1 {[%emt 0:00:01]} Qf8 {[%emt 0:00:11]} 25. Kg2 {[%emt 0:00:22]} Qh6 {[%emt 0:00:14]} 26. Qc1 {[%emt 0:01:20]} Qh5 {[%emt 0:00:12]} 27. Qh1 {[%emt 0:00:11]} Qf5 {[%emt 0:00:03]} 28. Qh3 {[%emt 0:00:17]} Qc2 {[%emt 0:00:24]} 29. Qh7 {[%emt 0:00:17]} Qf5 {[%emt 0:00:23]} 30. Qh3 {[%emt 0:00:10]} Qe4 {[%emt 0:00:17]} 31. Qh7 {[%emt 0:00:20]} Qf5 {[%emt 0:00:51]} 32. Qh3 {[%emt 0:00:13]} Qe4 {[%emt 0:04:34]} 33. Qh7 {[%emt 0:00:04]} Qf5 {[%emt 0:00:49]} 34. Qh3 {[%emt 0:00:03]} Qe4 {[%emt 0:00:10]} 1/2-1/2

[Event "RUS-ch Men Rapid 2019"]
[Site "Sochi"]
[Date "2019.10.15"]
[Round "5.22"]
[White "Alexeev, Alexey"]
[Black "Nesterov, Arseniy"]
[Result "0-1"]
[ECO "C28"]
[WhiteElo "2252"]
[BlackElo "2484"]
[Annotator "ChessBase"]
[PlyCount "72"]
[EventDate "2019.10.15"]
[EventType "swiss"]
[EventCountry "RUS"]
[SourceTitle "playchess.com"]
[Source "ChessBase"]
[SourceQuality "1"]
[TimeControl "900+10"]

1. e4 {[%emt 0:00:00]} e5 {[%emt 0:00:00]} 2. Nc3 {[%emt 0:00:02]} Nc6 {[%emt 0:00:00]} 3. Bc4 {[%emt 0:00:02]} Nf6 {[%emt 0:00:00]} 4. d3 {[%emt 0:00:02]} Bc5 {[%emt 0:00:01]} 5. f4 {[%emt 0:00:02]} d6 {[%emt 0:00:28]} 6. Nf3 {[%emt 0:00:02]} Na5 {[%emt 0:01:27]} 7. Bb3 {[%emt 0:00:59]} Nxb3 {[%emt 0:00:03]} 8. axb3 {[%emt 0:00:02]} O-O {[%emt 0:00:37]} 9. Na4 {[%emt 0:00:41]} exf4 {[%emt 0:02:45]} 10. Nxc5 {[%emt 0:00:08]} dxc5 {[%emt 0:00:15]} 11. Bxf4 {[%emt 0:00:12]} Nh5 {[%emt 0:00:15]} 12. Be3 {[%emt 0:00:59]} b6 {[%emt 0:00:32]} 13. O-O {[%emt 0:00:44]} f5 {[%emt 0:00:23]} 14. Ng5 {[%emt 0:00:25]} Qe8 {[%emt 0:00:23]} 15. Qf3 {[%emt 0:04:37]} h6 {[%emt 0:00:38]} 16. e5 {[%emt 0:00:46]} Rb8 {[%emt 0:00:28]} 17. Rxa7 {[%emt 0:03:13]} hxg5 {[%emt 0:01:49]} 18. Bxg5 {[%emt 0:00:06]} Qg6 {[%emt 0:00:54]} 19. h4 {[%emt 0:00:27]} Rf7 {[%emt 0:00:43]} 20. Rfa1 {[%emt 0:01:21]} Be6 {[%emt 0:00:16]} 21. Qc6 {[%emt 0:00:16]} Rc8 {[%emt 0:01:48]} 22. Rb7 {[%emt 0:00:53]} f4 {[%emt 0:00:50]} 23. Raa7 {[%emt 0:00:43]} Qf5 {[%emt 0:00:07]} 24. Rxc7 {[%emt 0:01:30]} Rcxc7 {[%emt 0:00:04]} 25. Rxc7 {[%emt 0:00:11]} Rxc7 {[%emt 0:00:50]} 26. Qe8+ {[%emt 0:00:39]} Qf8 {[%emt 0:00:01]} 27. Qxe6+ {[%emt 0:00:01]} Qf7 {[%emt 0:01:04]} 28. Qxb6 {[%emt 0:00:08]} Rc8 {[%emt 0:01:34]} 29. e6 {[%emt 0:00:05]} Qg6 {[%emt 0:00:11]} 30. Qd6 {[%emt 0:00:29]} Re8 {[%emt 0:00:04]} 31. Qxc5 {[%emt 0:00:04]} Qxe6 {[%emt 0:00:19]} 32. Kh2 {[%emt 0:00:16]} Qg4 {[%emt 0:00:13]} 33. Qd5+ {[%emt 0:00:10]} Kh8 {[%emt 0:00:03]} 34. Be7 {[%emt 0:00:05]} Qg3+ {[%emt 0:00:13]} 35. Kh1 {[%emt 0:00:01]} Qe1+ {[%emt 0:00:01]} 36. Kh2 {[%emt 0:00:05]} Ng3 {[%emt 0:00:02]} 0-1